Cogmind - Beta 16 @@@ ROGUE MODE // 2026.01.19 @ 17:40:22 Player: YoKa Result: Destroyed by G-34 Mercenary with Small Laser Performance ------------- Evolutions (0) 0 Regions Visited (1) 200 Robots Destroyed (8) 40 Value Destroyed (136) 136 Prototype IDs (0) 0 Alien Tech Used (0) 0 Bonus (0) 0 TOTAL SCORE: 376 Bonus ------- None Cogmind --------- Core Integrity 0/250 Matter 166/300 Energy 100/100 System Corruption 10% Temperature Cool (7) Movement Core (150) Ox2 Location -10/Materials Parts ------- > --- POWER (1) -------- (None) > --- PROPULSION (2) --- (None) > --- UTILITY (2) ------ Small Storage Unit Structural Scanner > --- WEAPON (2) ------- Light Assault Rifle > --- INVENTORY (8) ---- Ion Engine Ion Engine Light Assault Rifle Peak State ------------ > --- POWER ------------ Ion Engine > --- PROPULSION ------- Aluminum Leg Aluminum Leg > --- UTILITY ---------- Small Storage Unit Improved Terrain Scanner > --- WEAPON ----------- Light Assault Rifle Light Assault Rifle > --- INVENTORY -------- Light Assault Rifle [Rating: 9] Favorites ----------- Power Ion Engine Engine Ion Engine Propulsion Aluminum Leg Leg Aluminum Leg Utility Small Storage Unit Device Improved Terrain Scanner Storage Small Storage Unit Weapon Light Assault Rifle Ballistic Gun Light Assault Rifle Launcher Grenade Launcher Special Weapon Mining Laser Build | -11 -10 ------- Run | Yrd Mat Slots Evolved . | . . Power . | . . Propulsion . | . . Utility . | . . Weapon . | . . Parts Attached 11 | 7 4 Power 1 | 1 . Engine 1 | 1 . Core . | . . Reactor . | . . Propulsion 2 | 2 . Treads . | . . Leg 2 | 2 . Wheel . | . . Hover . | . . Flight . | . . Utility 3 | 2 1 Device 2 | 1 1 Storage 1 | 1 . Processor . | . . Hackware . | . . Protection . | . . Artifact . | . . Weapon 5 | 2 3 Energy Gun . | . . Energy Cannon . | . . Ballistic Gun 3 | 2 1 Ballistic Cannon . | . . Launcher 1 | . 1 Special Weapon 1 | . 1 Impact Weapon . | . . Slashing Weapon . | . . Piercing Weapon . | . . Special Melee Weapon . | . . Unidentified Prototypes . | . . Parts Lost 7 | . 7 Power 1 | . 1 Propulsion 2 | . 2 Utility 1 | . 1 Weapon 3 | . 3 Highest Loss Streak 5 | . 5 To Critical Strikes . | . . Average Backups 1 | 1 2 Power . | . . Propulsion . | . . Utility . | . . Weapon 1 | . 1 Tool/Special . | . . Unused Backups 1 | . 1 Power 1 | . 1 Propulsion . | . . Utility . | . . Weapon . | . . Tool/Special . | . . Average Slot Usage (%) 74 | . 74 Engine 14 | . 14 Leg 7 | . 7 Device 11 | . 11 Storage 14 | . 14 Ballistic Gun 23 | . 23 Launcher 1 | . 1 Special Weapon 1 | . 1 Peak Build Rating 9 | 9 9 Average Rating 6 | 7 5 On Entrance 4 | . 9 Avg Prop Armor Cover (%) . | . . Naked Turns . | . . Heaviest Build 15 | 13 15 Greatest Support 20 | 20 20 Greatest Overweight (x) 4 | 1 4 Average Overweight (x) 1 | . 2 Largest Inventory Capacity 8 | 8 8 Average Capacity 7 | 7 8 Most Carried 4 | 4 4 Average Carried 1 | 1 2 Final Capacity 8 | 8 8 Final Carried 3 | 1 3 Class Distribution -------------------- 100% | Mutant Dominant Class ---------------- Mutant | -10/Materials Resources | -11 -10 ----------- Run | Yrd Mat Matter Collected 305 | 192 113 Remotely . | . . Salvage Created 136 | 10 126 Parts 17 | 3 14 Haulers Intercepted . | . . Recyclers Shooed . | . . Parts Field Recycled . | . . Retrieved Matter . | . . Parts Self-Destructed . | . . Prevented . | . . Parts Restored . | . . Kills | -11 -10 ------- Run | Yrd Mat Combat Hostiles Destroyed 5 | . 5 Guns 3 | . 3 AOE 2 | . 2 Classes Destroyed 5 | 1 4 Builder 1 | . 1 Tunneler 1 | 1 . Watcher 1 | . 1 Swarmer 3 | . 3 Grunt 2 | . 2 Best Kill Streak 2 | 1 2 Combat Bots Only 2 | . 2 Max Kills in Single Turn 2 | 1 2 Gunslinging . | . . Exploded 1 | . 1 Melee . | . . Uniques/NPCs Destroyed . | . . Combat | -11 -10 -------- Run | Yrd Mat Hostile Shots Fired 63 | . 63 Missed 14 | . 14 Hits 49 | . 49 Projectile 49 | . 49 Damage Taken 885 | . 885 Core 255 | . 255 Absorbed by Shields . | . . Core Remaining (%) 100 | 100 . Volleys Fired 39 | 6 33 Largest 2 | 2 2 Hottest 100 | 40 100 Shots Fired 60 | 12 48 Gun 44 | 12 32 Cannon . | . . Launcher 8 | . 8 Special 8 | . 8 Kinetic 44 | 12 32 Thermal 8 | . 8 Explosive 8 | . 8 Electromagnetic . | . . Robot Hit Streak 14 | 2 14 Robot Miss Streak 2 | 2 2 Penetration Max . | . . Secondary Targets . | . . Shots Hit Robots 33 | 6 27 Core Hits 13 | 2 11 Critical Kills 2 | . 2 Critical Parts Destroyed . | . . Critical Strikes 2 | . 2 Destroy 2 | . 2 Melee Attacks . | . . Impact . | . . Slashing . | . . Piercing . | . . Sneak Attacks . | . . Combat Hostiles . | . . Follow-up Attacks . | . . Damage Inflicted 404 | 45 359 Guns 257 | 45 212 Cannons . | . . Explosions 147 | . 147 Melee . | . . Ramming . | . . Kinetic 257 | 45 212 Thermal . | . . Explosive 147 | . 147 Electromagnetic . | . . Impact . | . . Slashing . | . . Piercing . | . . Highest Corruption 10 | . 10 Average Corruption 10 | . 10 Corruption Purged . | . . Corruption Blocked . | . . Effects 10 | . 10 Matter Fused 4 | . 4 Energy Discharges 2 | . 2 Data Loss (major) 1 | . 1 Misfires 3 | . 3 Overload Shots . | . . Overflow Damage . | . . Projectiles . | . . Explosions . | . . Melee . | . . Knockbacks . | . . Impact . | . . Kinetic . | . . Secondary . | . . Self-Inflicted Damage 20 | . 20 Shots 2 | . 2 Rammed . | . . Targets Rammed . | . . Kicked . | . . Crushed . | . . Highest Temperature 48 | . 48 Average Temperature 17 | . 17 Received Heat Transfer 186 | . 186 Siege Activations . | . . Martial Activations . | . . Shielding Activations . | . . Robots Disrupted . | . . Combat Hostiles . | . . Robots Corrupted . | . . Combat Hostiles . | . . Parts Fried . | . . Impact Corruptions . | . . Robots Melted . | . . Combat Hostiles . | . . Parts Melted . | . . Heat Transferred . | . . Parts Sabotaged . | . . Parts Stolen . | . . Parts Stripped . | . . Power Chain Reactions . | . . Alert | -11 -10 ------- Run | Yrd Mat Maximum Alert Level . | . . Low Security (%) 100 | 100 100 Level 1 . | . . Level 2 . | . . Level 3 . | . . Level 4 . | . . Level 5 . | . . High Security . | . . Max Security . | . . Peak Influence 106 | 5 106 Initial . | . . Average 37 | . 61 Influence Increases 237 | 5 232 Destroy 0b10 Robot/C 100 | . 100 Destroy 0b10 Robot/NC 15 | 5 10 Destroy Leader 32 | . 32 Select Force Hacks 30 | . 30 Disable Machine 15 | . 15 Destroy Structure 45 | . 45 Influence Decreases 171 | 5 166 Time Decay 140 | 5 135 Lost Part 31 | . 31 Squads Dispatched 5 | . 5 Investigation 2 | . 2 Extermination . | . . Reinforcement 3 | . 3 Assault . | . . Garrison . | . . Intercept . | . . Searches Triggered . | . . Construction Impeded . | . . Haulers Reinforced . | . . Active Scanning Responses . | . . Cargo Convoy Interrupts . | . . Stealth | -11 -10 --------- Run | Yrd Mat Distress Signals 2 | . 2 Communications Jammed . | . . Distress Signals . | . . Times Spotted 10 | . 10 Peak Tracking Total 3 | . 3 Tactical Retreats . | . . Traps | -11 -10 ------- Run | Yrd Mat Traps Triggered 1 | . 1 Indirectly . | . . Trap Hack Attempts . | . . Triggered . | . . Disarmed . | . . Reprogrammed . | . . Reused . | . . Traps Extracted . | . . Installed . | . . Triggered . | . . Machines | -11 -10 ---------- Run | Yrd Mat Machines Disabled 1 | . 1 Max in Single Turn 1 | . 1 Machines Repaired . | . . Machines Dismantled . | . . Machines Sabotaged . | . . Overloaded Fab Kills . | . . Hacking | -11 -10 --------- Run | Yrd Mat Machines Accessed 3 | . 3 Terminals 2 | . 2 Fabricators . | . . Repair Stations . | . . Recycling Units 1 | . 1 Scanalyzers . | . . Garrison Access . | . . Total Hacks 6 | . 6 Successful 3 | . 3 Failed 3 | . 3 Catastrophic 1 | . 1 Database Lockouts . | . . Manual 5 | . 5 Terminals 4 | . 4 Fabricators . | . . Repair Stations . | . . Recycling Units 2 | . 2 Scanalyzers . | . . Garrison Access . | . . Terminal Hacks . | . . Fabricator Hacks . | . . Repair Station Hacks . | . . Recycling Unit Hacks 1 | . 1 Report Inventory 1 | . 1 Scanalyzer . | . . Garrison Access Hacks . | . . Unauthorized Hacks 2 | . 2 Terminals 1 | . 1 Assimilate 1 | . 1 Fabricators . | . . Repair Stations . | . . Recycling Units 1 | . 1 Tunnel 1 | . 1 Scanalyzers . | . . Garrison Access . | . . Data Cores Recovered . | . . Used . | . . Hacking Detections 3 | . 3 Full Trace Events 1 | . 1 Feedback Events . | . . Feedback Blocked . | . . Robot Schematics Acquired . | . . Robots Built . | . . Authchips . | . . Time . | . . Total Robot Build Rating . | . . Part Schematics Acquired . | . . Parts Built . | . . Authchips . | . . Time . | . . Total Part Build Rating . | . . Part Studies Acquired . | . . Parts Repaired . | . . Time . | . . Parts Recycled . | . . Recycled Matter . | . . Retrieved Matter . | . . Retrieved Components . | . . Parts Scanalyzed . | . . Part Schematics Acquired . | . . Parts Damaged . | . . Bothacking | -11 -10 ------------ Run | Yrd Mat Used RIF Installer . | . . Robots Hacked . | . . Non-combat . | . . Combat . | . . Robot Hacks Applied . | . . Relay Couplers Released . | . . Fabnet Peak Effective % . | . . Robots Rewired . | . . Allies Hacked . | . . Hacks Repelled . | . . Allies | -11 -10 -------- Run | Yrd Mat Total Allies . | . . Largest Group . | . . Highest-Rated Group . | . . Highest-Rated Ally . | . . Total Orders . | . . Ally Attacks . | . . Total Damage . | . . Kills . | . . Allies Corrupted . | . . Allies Melted . | . . Intel | -11 -10 ------- Run | Yrd Mat Active Infowar (turns) 476 | 167 309 Terrain 253 | 167 86 Structural 223 | . 223 Robot Analysis Total . | . . Derelict Logs Recovered . | . . Drone Launches . | . . Drone Recoveries . | . . Exploration | -11 -10 ------------- Run | Yrd Mat Turns Passed 615 | 241 374 Spaces Moved 243 | 117 126 Core 92 | 6 86 Treads . | . . Legs 151 | 111 40 Wheels . | . . Hover . | . . Flight . | . . Fastest Speed 50 | 50 120 Average Speed 165 | 118 208 Slowest Speed 250 | 120 250 Overloaded Moves . | . . Propulsion Burnouts . | . . Robots Hopped . | . . Potential Cave-ins . | . . Cave-ins Triggered 1 | . 1 Exploration Rate (%) 17 | 5 30 Regions Visited 1 Branch Regions . Pre-discovered Areas 1 | . 1 Known Exits Taken . | . . Unknown Exits Taken 1 | 1 . Scrap Searched . | . . Spaces Dug 17 | . 17 Terrain Destroyed 55 | . 55 Melee . | . . Projectile 8 | . 8 AOE 47 | . 47 Terrain Rammed . | . . Walls Destroyed . | . . Machines Disabled . | . . Actions | -11 -10 --------- Run | Yrd Mat Total 390 | 209 181 Wait 84 | 72 12 Move 242 | 116 126 Hop . | . . Pick Up 13 | 8 5 Fast Attach . | . . Attach 10 | 7 3 Detach . | . . Swap 2 | . 2 Drop . | . . Fire 39 | 6 33 Melee . | . . Ram . | . . Kick . | . . Crush . | . . Escape Stasis . | . . Rewire . | . . Trap . | . . Miscellaneous . | . . Route ------- -11/Scrapyard -10/Materials History --------- Turn | Location | Event 16 | -11/Scrapyard | Discovered new exit (range 16) 242 | -11/Scrapyard | Entered Materials 243 | -10/Materials | Met a group of wandering Federalists 308 | -10/Materials | Build established: Mutant 328 | -10/Materials | Crushed by falling debris 328 | -10/Materials | System corruption reached 10% 403 | -10/Materials | Lost 5 parts (2n1u2w) 519 | -10/Materials | Core integrity fell below 50% 613 | -10/Materials | Core integrity fell below 20% 616 | -10/Materials | Destroyed by G-34 Mercenary with Small Laser Last Messages --------------- U-05 Engineer lays Concrete. K-01 Serf cleans the Atomic Centrifuge. U-05 Engineer suffers critical hit (Destroy). U-05 Engineer destroyed. G-34 Mercenary destroyed. K-01 Serf cleans the Atomic Centrifuge. Acquired 47 matter. System corrupted: Energy discharge (-80). Acquired 18 matter. K-01 Serf cleans the Atomic Centrifuge. Acquired Ion Engine. K-01 Serf cleans the Atomic Centrifuge. K-01 Serf collects debris. System corrupted: FCS attempts to trigger Lgt. Assault Rifle. System corrupted: Lgt. Assault Rifle misfires. K-01 Serf collects debris. Ion Engine destroyed. Lgt. Assault Rifle destroyed. K-01 Serf collects debris. Map ----- +----------------------------------------------------+ | ????????????????????????????????????????????????? | | ????????????????????????????????????????????????? | | ????????????????????????????????????????????????? | | ????????????????????????????????????????????????? | | ????????????????????????????????????????????????? | | ????????????????????????????????????????????????? | | ????????????????????????????????????????????????? | | ????????????????????????????????????????????????? | | ????????????????????????????????????????????????? | | ????????????????????????????????????????????????? | | ????????????????????????????????????????????????? | | ????????????????????????????????????????????????? | | ????????????????????????????????????????????????? | | ????????????????????????????????????????????????? | | ????????????????????????????????????????????????? | | ????????????????????????????????????????????????? | | ??????????????????????????????????? ??????????? | | ??????????????????????????????????= ##????????? | | ????????????????????????????????? ##????????? | | ????????????????????????????????!!! ##????????? | | ??????????????????????????????? !!! ""????????? | | ??????????????????????????????? !!! T?????????? | | ?????????????? ########## ""???????? | | ??????????????##/############# ##???????? | | ??????????????## g/ "T" ##???????? | | ??????????????## #g@ # ???????? | | ??????????????## # # ???????? | | ??????????????## g = !k # ???????? | | ??????????????## ##= [ + ???????? | | ??????????????## ## *""" """ # ???????? | | ??????????????########## """ """ # ????? ?? | | ??????????????########## """ """ # ? #??? | | ??????????????########## ####+## ?? | | ??????????????## # #### ####?# | | ??????????????## " # """ """ # ## # ### | | ??????????????## """ # """ """ ## # # | | ??????????????## "" # """ """ ###### | | ??????????????## """ # = | | ??????????????## "" + [ [##### | | ??????????????## """ # """ "" * # | | ??????????????## """ # """ """ ###+## # | | ??????????????## """ # """ """ # | | ??????????????## " # # | | ??????????????## + + | | ??????????????############+##+##+####### """ | | ??????????????######## """ # T ##" """"" | | ????????????????????## "Y" /# ##T """"" | | ????????????????????## # ##" """"" | | ????????????????????##[ # ! ## """ | | ????????????????????############################# | +----------------------------------------------------+ Best States ------------- Heat Dissipation 25 Energy Generation 10 Energy Capacity 250 Matter Stores 216 Matter Capacity 300 Sight Range 16 Terrain Scan Range 16 Terrain Scan Density 10 Evasion (%) 55 Item Schematics ----------------- None Robot Schematics ------------------ None Fabricated ------------ Nothing Repaired ---------- Nothing Studied --------- None Alien Tech Used ----------------- None Achievements -------------- Unlikely Earthworm Challenges ------------ None Game ------ Seed ChromaticNavigationScanner Manual? 0 Play Time 00:10:19 Cumulative 3.9 hours Start 2026.01.19 @ 17:32:44 End 2026.01.19 @ 17:40:22 Sessions 1 Manual Loads 0 Difficulty Rogue Special Mode None Game No. 5 Rogue 5 Adventurer 0 Explorer 0 Win Type - Total 0 Types 0/0/0/0/0/0/0/0/0/0 Lore% 2 Gallery% 6 Achievement% 9 Wizard Run 0 Options --------- Layout 2 ASCII 0 Keyboard 0 Movement Mouse Keybinds 0 Fullscreen 1 Font 24/Smallcaps Map View 50x44 Zoom Use 0% Tactical HUD 0 Map Filters NONE Filters NONE Steam 1 RUN: e6d690fa-9f03-442a-8c25-5a9ffe7097c4